fUSD/lending_fUSD_20260505
["ID","MTS","AMOUNT","RATE_DAILY","PERIOD"]
[421589683,1777938655000,-294.0,0.0002354,2]
[421589688,1777938655000,-569.01,0.00023544,2]
[421589684,1777938655000,-393.19,0.00023544,2]
[421589686,1777938655000,-639.3,0.00023544,2]
[421589700,1777938655000,-200.0,0.00023551,2]
[421589690,1777938655000,-393.24,0.00023544,2]
[421589701,1777938655000,-200.0,0.00023551,2]
[421589687,1777938655000,-568.72,0.00023544,2]
[421589689,1777938655000,-390.5,0.00023544,2]
[421589704,1777938655000,-151.0,0.00023557,2]
[421589691,1777938655000,-568.88,0.00023544,2]
[421589702,1777938655000,-332.0,0.00023551,2]
[421589703,1777938655000,-151.0,0.00023557,2]
[421589698,1777938655000,-200.0,0.00023551,2]
[421589696,1777938655000,-255.0,0.00023548,2]
[421589699,1777938655000,-200.0,0.00023551,2]
[421589713,1777938655000,-568.94,0.00023559,2]
[421589697,1777938655000,-200.0,0.00023551,2]
[421589694,1777938655000,-150.0,0.00023548,2]
[421589692,1777938655000,-183.66,0.00023544,2]
[421589693,1777938655000,-150.0,0.00023548,2]
[421589695,1777938655000,-150.0,0.00023548,2]
[421589779,1777938656000,-393.24,0.00024272,2]
[421589777,1777938656000,-569.01,0.00024272,2]
[421589788,1777938656000,-568.96,0.00024299,2]
[421589778,1777938656000,-569.01,0.00024272,2]
[421589776,1777938656000,-478.68,0.00024272,2]
[421589772,1777938656000,-571.19,0.00024269,2]
[421589767,1777938656000,-212.52156229,0.00024,2]
[421589774,1777938656000,-478.62,0.00024272,2]
[421589766,1777938656000,-465.43891798,0.00024,2]
[421589773,1777938656000,-639.3,0.00024269,2]
[421589787,1777938656000,-393.24,0.0002429,2]
[421589769,1777938656000,-483.0,0.00024,2]
[421589782,1777938656000,-572.79,0.00024272,2]
[421589793,1777938656000,-3535.0,0.00024318,2]
[421589785,1777938656000,-639.3,0.00024287,2]
[421589783,1777938656000,-638.9,0.00024287,2]
[421589786,1777938656000,-571.19,0.0002429,2]
[421589784,1777938656000,-571.2,0.00024287,2]
[421589781,1777938656000,-639.22,0.00024272,2]
[421589790,1777938656000,-924.0,0.00024318,2]
[421589789,1777938656000,-393.2,0.00024299,2]
[421589792,1777938656000,-623.664,0.00024318,2]
[421589791,1777938656000,-1351.0,0.00024318,2]
[421589797,1777938656000,-442.3,0.00024324,2]
[421589794,1777938656000,-1267.0,0.00024318,2]
[421589796,1777938656000,-6040.0,0.00024318,2]
[421589775,1777938656000,-569.01,0.00024272,2]
[421589780,1777938656000,-183.66,0.00024272,2]
[421589770,1777938656000,-150.0,0.0002403,2]
[421589737,1777938656000,-158.0,0.0002357,2]
[421589768,1777938656000,-297.0,0.00024,2]
[421589798,1777938656000,-634.46,0.00024359,2]
[421589739,1777938656000,-282.0,0.00023668,2]
[421589750,1777938656000,-150.0,0.00023736,2]
[421589742,1777938656000,-150.0,0.00023669,2]
[421589738,1777938656000,-150.0,0.00023668,2]
[421589740,1777938656000,-150.0,0.00023669,2]
[421589741,1777938656000,-150.0,0.00023669,2]
[421589744,1777938656000,-150.0,0.00023669,2]
[421589748,1777938656000,-208.0,0.00023669,2]
[421589745,1777938656000,-150.0,0.00023669,2]
[421589746,1777938656000,-150.0,0.00023669,2]
[421589747,1777938656000,-150.0,0.00023669,2]
[421589743,1777938656000,-150.0,0.00023669,2]
[421589771,1777938656000,-602.96,0.0002411,2]
[421589752,1777938656000,-150.0,0.00023736,2]
[421589751,1777938656000,-150.0,0.00023736,2]
[421589755,1777938656000,-156.26,0.00023744,2]
[421589759,1777938656000,-150.0,0.0002376,2]
[421589758,1777938656000,-150.0,0.0002376,2]
[421589754,1777938656000,-184.0,0.00023736,2]
[421589757,1777938656000,-150.0,0.0002376,2]
[421589760,1777938656000,-153.0,0.0002376,2]
[421589753,1777938656000,-150.0,0.00023736,2]
[421589756,1777938656000,-150.0,0.0002376,2]
[421589761,1777938656000,-150.0,0.00023904,2]
[421589764,1777938656000,-193.77307909,0.00024,2]
[421589763,1777938656000,-175.0,0.00023904,2]
[421589765,1777938656000,-217.61279268,0.00024,2]
[421589762,1777938656000,-150.0,0.00023904,2]
[421589795,1777938656000,-417.0,0.00024318,2]
[421589749,1777938656000,-150.0,0.00023736,2]
[421589809,1777938656000,-183.66,0.00024361,2]
[421589836,1777938656000,-571.26,0.00024379,2]
[421589835,1777938656000,-639.3,0.00024379,2]
[421589832,1777938656000,-570.21,0.00024379,2]
[421589833,1777938656000,-478.45,0.00024379,2]
[421589834,1777938656000,-478.62,0.00024379,2]
[421589837,1777938656000,-643.21,0.00024379,2]
[421589841,1777938656000,-151.0,0.0002438,2]
[421589839,1777938656000,-569.01,0.00024379,2]
[421589840,1777938656000,-393.24,0.00024379,2]
[421589843,1777938656000,-483.58,0.00024381,2]
[421589842,1777938656000,-151.0,0.0002438,2]
[421589845,1777938656000,-478.68,0.00024381,2]
[421589844,1777938656000,-393.02,0.00024381,2]
[421589829,1777938656000,-151.0,0.00024378,2]
[421589850,1777938656000,-639.3,0.00024381,2]
[421589849,1777938656000,-571.2,0.00024381,2]
[421589848,1777938656000,-571.26,0.00024381,2]
[421589846,1777938656000,-571.26,0.00024381,2]
[421589852,1777938656000,-569.01,0.00024381,2]
[421589859,1777938656000,-393.24,0.00024383,2]
[421589860,1777938656000,-571.19,0.00024383,2]
[421589861,1777938656000,-183.68,0.00024383,2]
[421589851,1777938656000,-570.96,0.00024381,2]
[421589853,1777938656000,-393.19,0.00024381,2]
[421589858,1777938656000,-568.86,0.00024383,2]
[421589856,1777938656000,-151.0,0.00024383,2]
[421589857,1777938656000,-571.11,0.00024383,2]
[421589855,1777938656000,-571.26,0.00024381,2]
[421589847,1777938656000,-183.6,0.00024381,2]
[421589831,1777938656000,-151.0,0.00024378,2]
[421589854,1777938656000,-182.45,0.00024381,2]
[421589838,1777938656000,-568.87,0.00024379,2]
[421589828,1777938656000,-151.0,0.00024378,2]
[421589812,1777938656000,-393.13,0.00024361,2]
[421589799,1777938656000,-183.64,0.00024359,2]
[421589802,1777938656000,-639.3,0.00024359,2]
[421589801,1777938656000,-571.26,0.00024359,2]
[421589810,1777938656000,-393.24,0.00024361,2]
[421589808,1777938656000,-639.3,0.00024361,2]
[421589811,1777938656000,-568.95,0.00024361,2]
[421589803,1777938656000,-183.62,0.00024359,2]
[421589807,1777938656000,-183.68,0.00024361,2]
[421589804,1777938656000,-569.01,0.00024359,2]
[421589805,1777938656000,-478.68,0.00024361,2]
[421589806,1777938656000,-639.3,0.00024361,2]
[421589814,1777938656000,-639.14,0.00024365,2]
[421589800,1777938656000,-571.28,0.00024359,2]
[421589813,1777938656000,-568.94,0.00024365,2]
[421589825,1777938656000,-183.68,0.00024375,2]
[421589827,1777938656000,-151.0,0.00024376,2]
[421589820,1777938656000,-183.41,0.00024365,2]
[421589823,1777938656000,-183.68,0.00024365,2]
[421589821,1777938656000,-396.15,0.00024365,2]
[421589822,1777938656000,-571.04,0.00024365,2]
[421589817,1777938656000,-568.72,0.00024365,2]
[421589818,1777938656000,-393.19,0.00024365,2]
[421589824,1777938656000,-183.68,0.00024375,2]
[421589819,1777938656000,-571.19,0.00024365,2]
[421589815,1777938656000,-478.68,0.00024365,2]
[421589830,1777938656000,-151.0,0.00024378,2]
[421589826,1777938656000,-181.88,0.00024375,2]
[421589816,1777938656000,-571.28,0.00024365,2]
[421589893,1777938657000,-575.52,0.00025187,2]
[421589899,1777938657000,-393.24,0.00025187,2]
[421589897,1777938657000,-639.3,0.00025187,2]
[421589900,1777938657000,-569.01,0.00025197,2]
[421589896,1777938657000,-571.19,0.00025187,2]
[421589895,1777938657000,-393.24,0.00025187,2]
[421589892,1777938657000,-393.2,0.00025187,2]
[421589898,1777938657000,-639.22,0.00025187,2]
[421589903,1777938657000,-183.64,0.00025197,2]
[421589913,1777938657000,-183.64,0.00025201,2]
[421589901,1777938657000,-568.94,0.00025197,2]
[421589909,1777938657000,-569.01,0.00025197,2]
[421589912,1777938657000,-639.22,0.00025201,2]
[421589911,1777938657000,-574.37,0.00025198,2]
[421589906,1777938657000,-569.01,0.00025197,2]
[421589908,1777938657000,-678.67,0.00025197,2]
[421589904,1777938657000,-183.68,0.00025197,2]
[421589894,1777938657000,-571.27,0.00025187,2]
[421589905,1777938657000,-478.68,0.00025197,2]
[421589910,1777938657000,-569.01,0.00025197,2]
[421589907,1777938657000,-393.24,0.00025197,2]
[421589914,1777938657000,-183.64,0.00025201,2]
[421589916,1777938657000,-183.68,0.00025201,2]
[421589924,1777938657000,-571.26,0.00025203,2]
[421589919,1777938657000,-638.13,0.00025202,2]
[421589902,1777938657000,-639.3,0.00025197,2]
[421589891,1777938657000,-569.01,0.00025187,2]
[421589881,1777938657000,-156.25333333,0.00024658,2]
[421589888,1777938657000,-571.26,0.00025109,2]
[421589920,1777938657000,-570.98,0.00025202,2]
[421589862,1777938657000,-183.6,0.00024383,2]
[421589863,1777938657000,-639.22,0.00024384,2]
[421589864,1777938657000,-180.38,0.00024384,2]
[421589868,1777938657000,-183.68,0.00024384,2]
[421589877,1777938657000,-180.43,0.00024658,2]
[421589866,1777938657000,-566.0,0.00024384,2]
[421589875,1777938657000,-151.0,0.00024658,2]
[421589867,1777938657000,-478.68,0.00024384,2]
[421589871,1777938657000,-1772.5,0.0002463,30]
[421589865,1777938657000,-571.26,0.00024384,2]
[421589874,1777938657000,-150.0,0.00024658,2]
[421589886,1777938657000,-2000.0,0.00025108,2]
[421589872,1777938657000,-800.40022708,0.0002463,30]
[421589869,1777938657000,-639.3,0.00024392,2]
[421589870,1777938657000,-1636.0,0.0002463,30]
[421589878,1777938657000,-151.0,0.00024658,2]
[421589890,1777938657000,-393.19,0.00025187,2]
[421589885,1777938657000,-183.68,0.00025094,2]
[421589879,1777938657000,-151.0,0.00024658,2]
[421589889,1777938657000,-559.87,0.00025109,2]
[421589884,1777938657000,-393.24,0.00025094,2]
[421589882,1777938657000,-162.48539177,0.00024875,2]
[421589880,1777938657000,-1000.0,0.00024658,2]
[421589887,1777938657000,-502.94991456,0.00025108,2]
[421589883,1777938657000,-2022.33837479,0.00024928,36]
[421589876,1777938657000,-151.0,0.00024658,2]
[421589873,1777938657000,-500.0,0.00024657,2]
[421589922,1777938657000,-639.3,0.00025202,2]
[421589918,1777938657000,-393.08,0.00025202,2]
[421589950,1777938657000,-571.26,0.00025206,2]
[421589953,1777938657000,-393.24,0.00025206,2]
[421589956,1777938657000,-478.68,0.00025207,2]
[421589962,1777938657000,-350.0,0.00025753,2]
[421589955,1777938657000,-478.62,0.00025207,2]
[421589961,1777938657000,-156.25,0.00025571,2]
[421589957,1777938657000,-569.01,0.00025214,2]
[421589958,1777938657000,-478.49,0.00025214,2]
[421589963,1777938657000,-619.13745938,0.00025756,7]
[421589960,1777938657000,-6280.09770852,0.00025281,2]
[421589959,1777938657000,-568.45,0.00025214,2]
[421589954,1777938657000,-639.3,0.00025207,2]
[421589949,1777938657000,-389.52,0.00025206,2]
[421589964,1777938657000,-500.0,0.00025756,7]
[421589967,1777938657000,-3300.0,0.00026,3]
[421589968,1777938657000,-393.19,0.00026005,2]
[421589970,1777938657000,-568.95,0.00026009,2]
[421589969,1777938657000,-570.89,0.00026009,2]
[421589972,1777938657000,-393.24,0.00026019,2]
[421589971,1777938657000,-478.63,0.00026019,2]
[421589973,1777938657000,-639.3,0.00026019,2]
[421589974,1777938657000,-571.06,0.00026019,2]
[421589976,1777938657000,-478.68,0.0002602,2]
[421589975,1777938657000,-639.3,0.00026019,2]
[421589977,1777938657000,-570.48,0.00026022,2]
[421589915,1777938657000,-569.01,0.00025201,2]
[421589966,1777938657000,-4565.17812422,0.00025935,2]
[421589948,1777938657000,-477.65,0.00025206,2]
[421589965,1777938657000,-700.0,0.00025756,7]
[421589951,1777938657000,-393.24,0.00025206,2]
[421589925,1777938657000,-568.94,0.00025203,2]
[421589941,1777938657000,-250.0,0.00025205,2]
[421589917,1777938657000,-151.0,0.00025202,2]
[421589921,1777938657000,-568.87,0.00025202,2]
[421589923,1777938657000,-571.26,0.00025203,2]
[421589927,1777938657000,-638.98,0.00025203,2]
[421589939,1777938657000,-568.94,0.00025205,2]
[421589937,1777938657000,-478.68,0.00025205,2]
[421589928,1777938657000,-639.22,0.00025203,2]
[421589926,1777938657000,-183.68,0.00025203,2]
[421589938,1777938657000,-393.24,0.00025205,2]
[421589936,1777938657000,-571.26,0.00025205,2]
[421589934,1777938657000,-183.68,0.00025205,2]
[421589929,1777938657000,-472.05,0.00025203,2]
[421589942,1777938657000,-639.3,0.00025206,2]
[421589930,1777938657000,-393.24,0.00025203,2]
[421589935,1777938657000,-571.26,0.00025205,2]
[421589933,1777938657000,-478.68,0.00025203,2]
[421589931,1777938657000,-639.3,0.00025203,2]
[421589940,1777938657000,-478.68,0.00025205,2]
[421589943,1777938657000,-478.68,0.00025206,2]
[421589944,1777938657000,-393.15,0.00025206,2]
[421589945,1777938657000,-569.06,0.00025206,2]
[421589946,1777938657000,-393.14,0.00025206,2]
[421589932,1777938657000,-393.24,0.00025203,2]
[421589947,1777938657000,-567.3,0.00025206,2]
[421589952,1777938657000,-478.62,0.00025206,2]
[421590023,1777938658000,-639.3,0.00026036,2]
[421590020,1777938658000,-476.66,0.00026028,2]
[421590012,1777938658000,-569.01,0.00026028,2]
[421590019,1777938658000,-639.3,0.00026028,2]
[421590026,1777938658000,-156.25,0.00026484,2]
[421590017,1777938658000,-571.26,0.00026028,2]
[421590009,1777938658000,-636.56,0.00026028,2]
[421590016,1777938658000,-639.14,0.00026028,2]
[421590014,1777938658000,-639.22,0.00026028,2]
[421590013,1777938658000,-639.3,0.00026028,2]
[421590018,1777938658000,-639.3,0.00026028,2]
[421590015,1777938658000,-393.08,0.00026028,2]
[421590021,1777938658000,-570.98,0.00026028,2]
[421590037,1777938658000,-183.68,0.00026842,2]
[421590024,1777938658000,-442.3,0.00026296,2]
[421590022,1777938658000,-393.19,0.00026036,2]
[421590025,1777938658000,-450.0,0.00026301,2]
[421590029,1777938658000,-1066.0333,0.000266,2]
[421590041,1777938658000,-478.49,0.00026846,2]
[421590040,1777938658000,-482.74,0.00026846,2]
[421590039,1777938658000,-393.24,0.00026844,2]
[421590028,1777938658000,-1245.1632,0.000266,2]
[421590030,1777938658000,-2000.0,0.000266,2]
[421590032,1777938658000,-480.0,0.00026763,2]
[421590036,1777938658000,-183.62,0.00026841,2]
[421590038,1777938658000,-478.51,0.00026842,2]
[421590010,1777938658000,-571.26,0.00026028,2]
[421590027,1777938658000,-392.32205053,0.00026574,2]
[421590011,1777938658000,-183.68,0.00026028,2]
[421589981,1777938658000,-571.26,0.00026023,2]
[421590008,1777938658000,-183.66,0.00026028,2]
[421589978,1777938658000,-151.0,0.00026022,7]
[421589979,1777938658000,-183.66,0.00026023,2]
[421589991,1777938658000,-568.88,0.00026025,2]
[421589982,1777938658000,-568.94,0.00026024,2]
[421589984,1777938658000,-185.81,0.00026024,2]
[421589980,1777938658000,-569.01,0.00026023,2]
[421589983,1777938658000,-571.26,0.00026024,2]
[421589987,1777938658000,-478.62,0.00026025,2]
[421589985,1777938658000,-571.26,0.00026024,2]
[421589986,1777938658000,-478.68,0.00026025,2]
[421589988,1777938658000,-439.47,0.00026025,2]
[421589990,1777938658000,-393.19,0.00026025,2]
[421589989,1777938658000,-393.24,0.00026025,2]
[421590007,1777938658000,-393.24,0.00026027,2]
[421589992,1777938658000,-478.68,0.00026025,2]
[421590031,1777938658000,-302.233083,0.00026611,2]
[421589996,1777938658000,-568.87,0.00026027,2]
[421589993,1777938658000,-393.24,0.00026025,2]
[421590002,1777938658000,-568.88,0.00026027,2]
[421589998,1777938658000,-393.24,0.00026027,2]
[421590000,1777938658000,-185.11,0.00026027,2]
[421590001,1777938658000,-478.68,0.00026027,2]
[421590003,1777938658000,-430.68,0.00026027,7]
[421589997,1777938658000,-478.55,0.00026027,2]
[421589999,1777938658000,-639.3,0.00026027,2]
[421590005,1777938658000,-569.01,0.00026027,2]
[421590004,1777938658000,-183.68,0.00026027,2]
[421590006,1777938658000,-639.06,0.00026027,2]
[421589994,1777938658000,-183.64,0.00026027,2]
[421590034,1777938658000,-563.02,0.00026825,2]
[421589995,1777938658000,-571.26,0.00026027,2]
[421590033,1777938658000,-3500.0,0.000268,7]
[421590076,1777938658000,-651.0,0.00027123,2]
[421590081,1777938658000,-480.0,0.0002722,2]
[421590071,1777938658000,-411.0,0.00027087,2]
[421590078,1777938658000,-505.0,0.00027137,2]
[421590077,1777938658000,-569.0,0.00027123,2]
[421590080,1777938658000,-10088083.20473482,0.000272,2]
[421590075,1777938658000,-189.0,0.00027123,2]
[421590079,1777938658000,-406.0,0.00027195,2]
[421590093,1777938658000,-1201.46301333,0.00027386,2]
[421590083,1777938658000,-2278.24445508,0.0002728,2]
[421590094,1777938658000,-154.89,0.00027397,2]
[421590084,1777938658000,-9333.22553728,0.0002728,2]
[421590087,1777938658000,-921.284,0.00027318,2]
[421590073,1777938658000,-2437.0,0.00027123,2]
[421590088,1777938658000,-3535.0,0.00027318,2]
[421590086,1777938658000,-924.0,0.00027318,2]
[421590082,1777938658000,-676.97163779,0.0002727,2]
[421590085,1777938658000,-181.347533,0.000273,10]
[421590090,1777938658000,-386.714,0.00027318,2]
[421590091,1777938658000,-6040.0,0.00027318,2]
[421590095,1777938658000,-154.89,0.00027397,30]
[421590098,1777938658000,-224.496297,0.00027397,2]
[421590097,1777938658000,-224.496297,0.00027397,2]
[421590099,1777938658000,-224.496297,0.00027397,2]
[421590096,1777938658000,-151.0,0.00027397,2]
[421590101,1777938658000,-151.0,0.00027397,2]
[421590100,1777938658000,-224.496297,0.00027397,2]
[421590035,1777938658000,-393.24,0.00026841,2]
[421590092,1777938658000,-879.32514364,0.0002737,2]
[421590070,1777938658000,-480.0,0.00027017,2]
[421590089,1777938658000,-1267.0,0.00027318,2]
[421590074,1777938658000,-353.0,0.00027123,2]
[421590072,1777938658000,-812.0,0.00027123,2]
[421590042,1777938658000,-397.16,0.00026846,2]
[421590046,1777938658000,-569.36,0.00026849,2]
[421590043,1777938658000,-478.56,0.00026846,2]
[421590045,1777938658000,-557.35,0.00026847,2]
[421590053,1777938658000,-393.24,0.0002685,2]
[421590054,1777938658000,-183.68,0.0002685,2]
[421590044,1777938658000,-566.36,0.00026847,2]
[421590049,1777938658000,-478.23,0.00026849,2]
[421590048,1777938658000,-392.97,0.00026849,2]
[421590050,1777938658000,-393.24,0.00026849,2]
[421590047,1777938658000,-183.68,0.00026849,2]
[421590051,1777938658000,-391.32,0.00026849,2]
[421590056,1777938658000,-183.68,0.0002685,2]
[421590052,1777938658000,-553.45901732,0.00026849,2]
[421590064,1777938658000,-571.26,0.00026858,2]
[421590065,1777938658000,-480.0,0.00026906,2]
[421590066,1777938658000,-480.0,0.0002696,2]
[421590062,1777938658000,-183.66,0.00026858,2]
[421590063,1777938658000,-571.26,0.00026858,2]
[421590060,1777938658000,-700.0,0.00026852,7]
[421590057,1777938658000,-569.01,0.0002685,2]
[421590059,1777938658000,-568.95,0.0002685,2]
[421590061,1777938658000,-601.7,0.00026858,2]
[421590055,1777938658000,-185.58,0.0002685,2]
[421590067,1777938658000,-200.0,0.00026999,2]
[421590069,1777938658000,-160.0,0.00027,7]
[421590068,1777938658000,-162.0,0.00027,7]
[421590058,1777938658000,-393.15,0.0002685,2]
[421590137,1777938659000,-500.0,0.0002767,2]
[421590141,1777938659000,-569.01,0.00027672,2]
[421590140,1777938659000,-162.0,0.00027671,14]
[421590143,1777938659000,-571.26,0.00027672,2]
[421590138,1777938659000,-568.87,0.00027671,2]
[421590139,1777938659000,-556.57438738,0.00027671,30]
[421590146,1777938659000,-500.0,0.0002777,2]
[421590142,1777938659000,-571.26,0.00027672,2]
[421590144,1777938659000,-848.81013408,0.000277,2]
[421590134,1777938659000,-568.78,0.00027664,2]
[421590145,1777938659000,-302.233083,0.00027732,14]
[421590147,1777938659000,-151.0,0.00027797,7]
[421590136,1777938659000,-268.56,0.0002767,2]
[421590150,1777938659000,-1479073.82110171,0.000278,7]
[421590171,1777938659000,-607.545318,0.000278,7]
[421590151,1777938659000,-151.0,0.000278,7]
[421590148,1777938659000,-151.0,0.00027797,7]
[421590152,1777938659000,-224.496297,0.000278,7]
[421590158,1777938659000,-151.0,0.000278,7]
[421590156,1777938659000,-151.0,0.000278,7]
[421590157,1777938659000,-151.0,0.000278,7]
[421590153,1777938659000,-224.496297,0.000278,7]
[421590155,1777938659000,-224.496297,0.000278,7]
[421590159,1777938659000,-291.604478,0.000278,7]
[421590154,1777938659000,-224.496297,0.000278,7]
[421590161,1777938659000,-291.604478,0.000278,7]
[421590173,1777938659000,-607.545318,0.000278,7]
[421590172,1777938659000,-607.545318,0.000278,7]
[421590135,1777938659000,-393.13,0.00027664,2]
[421590149,1777938659000,-148606.76254724,0.000278,4]
[421590129,1777938659000,-413.02,0.000274,2]
[421590106,1777938659000,-327.39669846,0.00027397,7]
[421590125,1777938659000,-1076.2,0.000274,7]
[421590163,1777938659000,-291.604478,0.000278,7]
[421590107,1777938659000,-180.43,0.00027397,2]
[421590104,1777938659000,-150.0,0.00027397,2]
[421590103,1777938659000,-205.38997711,0.00027397,2]
[421590102,1777938659000,-150.0,0.00027397,2]
[421590105,1777938659000,-1500.0,0.00027397,2]
[421590109,1777938659000,-3201.793738,0.00027397,2]
[421590119,1777938659000,-151.0,0.00027397,2]
[421590120,1777938659000,-151.0,0.00027397,2]
[421590110,1777938659000,-3201.793738,0.00027397,2]
[421590115,1777938659000,-3201.793738,0.00027397,2]
[421590112,1777938659000,-3201.793738,0.00027397,2]
[421590108,1777938659000,-3201.793738,0.00027397,2]
[421590111,1777938659000,-3201.793738,0.00027397,2]
[421590114,1777938659000,-3201.793738,0.00027397,2]
[421590117,1777938659000,-151.0,0.00027397,2]
[421590116,1777938659000,-151.0,0.00027397,2]
[421590118,1777938659000,-151.0,0.00027397,2]
[421590113,1777938659000,-3201.793738,0.00027397,2]
[421590121,1777938659000,-151.0,0.00027397,2]
[421590123,1777938659000,-151.0,0.00027397,2]
[421590131,1777938659000,-6280.09770852,0.00027591,2]
[421590122,1777938659000,-151.0,0.00027397,2]
[421590124,1777938659000,-122730.8106545,0.000274,7]
[421590130,1777938659000,-413.02,0.000274,2]
[421590128,1777938659000,-413.02,0.000274,2]
[421590132,1777938659000,-678.45945659,0.00027654,3]
[421590126,1777938659000,-413.02,0.000274,2]
[421590133,1777938659000,-569.01,0.00027663,2]
[421590127,1777938659000,-413.02,0.000274,2]
[421590162,1777938659000,-291.604478,0.000278,7]
[421590160,1777938659000,-291.604478,0.000278,7]
[421590230,1777938659000,-284.168815,0.000278,7]
[421590202,1777938659000,-194.100948,0.000278,7]
[421590211,1777938659000,-3201.793738,0.000278,7]
[421590201,1777938659000,-194.100948,0.000278,7]
[421590204,1777938659000,-194.100948,0.000278,7]
[421590205,1777938659000,-194.100948,0.000278,7]
[421590203,1777938659000,-194.100948,0.000278,7]
[421590212,1777938659000,-151.0,0.000278,7]
[421590209,1777938659000,-3201.793738,0.000278,7]
[421590207,1777938659000,-151.0,0.000278,7]
[421590206,1777938659000,-194.100948,0.000278,7]
[421590208,1777938659000,-3201.793738,0.000278,7]
[421590224,1777938659000,-151.0,0.000278,7]
[421590213,1777938659000,-151.0,0.000278,7]
[421590215,1777938659000,-151.0,0.000278,7]
[421590217,1777938659000,-151.0,0.000278,7]
[421590218,1777938659000,-151.0,0.000278,7]
[421590225,1777938659000,-180.048456,0.000278,7]
[421590221,1777938659000,-151.0,0.000278,7]
[421590216,1777938659000,-151.0,0.000278,7]
[421590223,1777938659000,-151.0,0.000278,7]
[421590219,1777938659000,-151.0,0.000278,7]
[421590220,1777938659000,-151.0,0.000278,7]
[421590222,1777938659000,-151.0,0.000278,7]
[421590226,1777938659000,-180.048456,0.000278,7]
[421590228,1777938659000,-180.048456,0.000278,7]
[421590229,1777938659000,-284.168815,0.000278,7]
[421590227,1777938659000,-180.048456,0.000278,7]
[421590164,1777938659000,-291.604478,0.000278,7]
[421590231,1777938659000,-284.168815,0.000278,7]
[421590210,1777938659000,-3201.793738,0.000278,7]
[421590196,1777938659000,-1245.631853,0.000278,7]
[421590214,1777938659000,-151.0,0.000278,7]
[421590198,1777938659000,-1245.631853,0.000278,7]
[421590169,1777938659000,-607.545318,0.000278,7]
[421590195,1777938659000,-1245.631853,0.000278,7]
[421590166,1777938659000,-291.604478,0.000278,7]
[421590165,1777938659000,-291.604478,0.000278,7]
[421590168,1777938659000,-151.0,0.000278,7]
[421590170,1777938659000,-607.545318,0.000278,7]
[421590175,1777938659000,-607.545318,0.000278,7]
[421590187,1777938659000,-1397.662752,0.000278,7]
[421590179,1777938659000,-151.0,0.000278,7]
[421590186,1777938659000,-1397.662752,0.000278,7]
[421590176,1777938659000,-607.545318,0.000278,7]
[421590185,1777938659000,-1397.662752,0.000278,7]
[421590174,1777938659000,-607.545318,0.000278,7]
[421590178,1777938659000,-151.0,0.000278,7]